Workbook

Sheet Sheet1
A1: 绥阳县2019年下半年公开招聘事业单位人员面试及综合成绩名单
A2: 序号 | B2: 面试准考证号 | C2: 报考单位 | D2: 职位代码 | E2: 《公共基础知识》成绩 | F2: 折算后笔试成绩（《公共基础知识》成绩÷ 1.5×60%） | G2: 面试成绩 | H2: 折算后面试成绩（面试成绩×40%） | I2: 综合成绩 | J2: 备注
A3: 1 | B3: 20192001 | C3: 绥阳县洋川街道村镇建设服务中心 | D3: 40101 | E3: 120.00 | F3: =ROUND((E3/1.5*0.6),2) -> 48.00 | G3: 68.60 | H3: =ROUND((G3*0.4),2) -> 27.44 | I3: =F3+H3 -> 75.44
A4: 2 | B4: 20192003 | C4: 绥阳县洋川街道村镇建设服务中心 | D4: 40101 | E4: 107.00 | F4: 42.80 | G4: 76.20 | H4: 30.48 | I4: 73.28
A5: 3 | B5: 20192002 | C5: 绥阳县洋川街道村镇建设服务中心 | D5: 40101 | E5: 110.50 | F5: 44.20 | H5: 0.00 | I5: 44.20 | J5: 缺考
A6: 4 | B6: 20192004 | C6: 绥阳县郑场镇人力资源和社会保障服务中心 | D6: 40201 | E6: 92.50 | F6: 37.00 | G6: 84.10 | H6: 33.64 | I6: 70.64
A7: 5 | B7: 20192005 | C7: 绥阳县郑场镇人力资源和社会保障服务中心 | D7: 40201 | E7: 87.00 | F7: 34.80 | G7: 77.90 | H7: 31.16 | I7: 65.96
A8: 6 | B8: 20192006 | C8: 绥阳县郑场镇人力资源和社会保障服务中心 | D8: 40201 | E8: 86.00 | F8: 34.40 | G8: 78.40 | H8: 31.36 | I8: 65.76
A9: 7 | B9: 20192007 | C9: 绥阳县郑场镇安全生产监督管理站 | D9: 40301 | E9: 126.50 | F9: 50.60 | G9: 73.80 | H9: 29.52 | I9: 80.12
A10: 8 | B10: 20192009 | C10: 绥阳县郑场镇安全生产监督管理站 | D10: 40301 | E10: 104.00 | F10: 41.60 | G10: 66.40 | H10: 26.56 | I10: 68.16
A11: 9 | B11: 20192008 | C11: 绥阳县郑场镇安全生产监督管理站 | D11: 40301 | E11: 112.50 | F11: 45.00 | H11: 0.00 | I11: 45.00 | J11: 缺考
A12: 10 | B12: 20192010 | C12: 绥阳县郑场镇林业站 | D12: 40401 | E12: 91.00 | F12: 36.40 | G12: 82.20 | H12: 32.88 | I12: 69.28
A13: 11 | B13: 20192012 | C13: 绥阳县郑场镇林业站 | D13: 40401 | E13: 84.50 | F13: 33.80 | G13: 73.60 | H13: 29.44 | I13: 63.24
A14: 12 | B14: 20192011 | C14: 绥阳县郑场镇林业站 | D14: 40401 | E14: 85.50 | F14: 34.20 | G14: 70.00 | H14: 28.00 | I14: 62.20
A15: 13 | B15: 20192013 | C15: 绥阳县坪乐镇农业服务中心 | D15: 40501 | E15: 115.00 | F15: 46.00 | G15: 76.40 | H15: 30.56 | I15: 76.56
A16: 14 | B16: 20192015 | C16: 绥阳县坪乐镇农业服务中心 | D16: 40501 | E16: 100.50 | F16: 40.20 | G16: 77.50 | H16: 31.00 | I16: 71.20
A17: 15 | B17: 20192014 | C17: 绥阳县坪乐镇农业服务中心 | D17: 40501 | E17: 102.50 | F17: 41.00 | G17: 74.60 | H17: 29.84 | I17: 70.84
A18: 16 | B18: 20192017 | C18: 绥阳县坪乐镇农业服务中心 | D18: 40501 | E18: 94.50 | F18: 37.80 | G18: 80.80 | H18: 32.32 | I18: 70.12
A19: 17 | B19: 20192022 | C19: 绥阳县坪乐镇农业服务中心 | D19: 40501 | E19: 90.00 | F19: 36.00 | G19: 80.80 | H19: 32.32 | I19: 68.32
A20: 18 | B20: 20192018 | C20: 绥阳县坪乐镇农业服务中心 | D20: 40501 | E20: 93.00 | F20: 37.20 | G20: 76.80 | H20: 30.72 | I20: 67.92
A21: 19 | B21: 20192019 | C21: 绥阳县坪乐镇农业服务中心 | D21: 40501 | E21: 92.00 | F21: 36.80 | G21: 73.00 | H21: 29.20 | I21: 66.00
A22: 20 | B22: 20192020 | C22: 绥阳县坪乐镇农业服务中心 | D22: 40501 | E22: 90.00 | F22: 36.00 | G22: 75.00 | H22: 30.00 | I22: 66.00
A23: 21 | B23: 20192016 | C23: 绥阳县坪乐镇农业服务中心 | D23: 40501 | E23: 97.00 | F23: 38.80 | G23: 67.60 | H23: 27.04 | I23: 65.84
A24: 22 | B24: 20192021 | C24: 绥阳县坪乐镇农业服务中心 | D24: 40501 | E24: 90.00 | F24: 36.00 | H24: 0.00 | I24: 36.00 | J24: 缺考
A25: 23 | B25: 20192023 | C25: 绥阳县坪乐镇人力资源和社会保障服务中心 | D25: 40601 | E25: 104.00 | F25: 41.60 | G25: 80.20 | H25: 32.08 | I25: 73.68
A26: 24 | B26: 20192024 | C26: 绥阳县坪乐镇人力资源和社会保障服务中心 | D26: 40601 | E26: 100.00 | F26: 40.00 | G26: 76.00 | H26: 30.40 | I26: 70.40
A27: 25 | B27: 20192025 | C27: 绥阳县坪乐镇人力资源和社会保障服务中心 | D27: 40601 | E27: 96.00 | F27: 38.40 | G27: 78.30 | H27: 31.32 | I27: 69.72
A28: 26 | B28: 20192026 | C28: 绥阳县坪乐镇人力资源和社会保障服务中心 | D28: 40601 | E28: 96.00 | F28: 38.40 | G28: 74.00 | H28: 29.60 | I28: 68.00
A29: 27 | B29: 20192027 | C29: 绥阳县坪乐镇科技宣教文化信息服务中心 | D29: 40701 | E29: 106.50 | F29: 42.60 | G29: 76.00 | H29: 30.40 | I29: 73.00
A30: 28 | B30: 20192028 | C30: 绥阳县坪乐镇科技宣教文化信息服务中心 | D30: 40701 | E30: 104.00 | F30: 41.60 | G30: 76.00 | H30: 30.40 | I30: 72.00
A31: 29 | B31: 20192029 | C31: 绥阳县坪乐镇科技宣教文化信息服务中心 | D31: 40701 | E31: 99.00 | F31: 39.60 | G31: 80.00 | H31: 32.00 | I31: 71.60
A32: 30 | B32: 20192030 | C32: 绥阳县坪乐镇安全生产监督管理站 | D32: 40801 | E32: 107.50 | F32: 43.00 | G32: 85.20 | H32: 34.08 | I32: 77.08
A33: 31 | B33: 20192031 | C33: 绥阳县坪乐镇安全生产监督管理站 | D33: 40801 | E33: 103.50 | F33: 41.40 | G33: 78.40 | H33: 31.36 | I33: 72.76
A34: 32 | B34: 20192032 | C34: 绥阳县坪乐镇安全生产监督管理站 | D34: 40801 | E34: 97.50 | F34: 39.00 | G34: 82.00 | H34: 32.80 | I34: 71.80
A35: 33 | B35: 20192033 | C35: 绥阳县坪乐镇财政所 | D35: 40901 | E35: 106.50 | F35: 42.60 | G35: 80.20 | H35: 32.08 | I35: 74.68
A36: 34 | B36: 20192034 | C36: 绥阳县坪乐镇财政所 | D36: 40901 | E36: 100.50 | F36: 40.20 | G36: 81.40 | H36: 32.56 | I36: 72.76
A37: 35 | B37: 20192035 | C37: 绥阳县坪乐镇财政所 | D37: 40901 | E37: 99.00 | F37: 39.60 | H37: 0.00 | I37: 39.60 | J37: 缺考
A38: 36 | B38: 20192036 | C38: 绥阳县坪乐镇水务工作管理站 | D38: 41001 | E38: 94.50 | F38: 37.80 | G38: 80.50 | H38: 32.20 | I38: 70.00
A39: 37 | B39: 20192037 | C39: 绥阳县坪乐镇水务工作管理站 | D39: 41001 | E39: 92.50 | F39: 37.00 | G39: 76.60 | H39: 30.64 | I39: 67.64
A40: 38 | B40: 20192038 | C40: 绥阳县枧坝镇农业服务中心 | D40: 41101 | E40: 101.50 | F40: 40.60 | G40: 81.90 | H40: 32.76 | I40: 73.36
A41: 39 | B41: 20192039 | C41: 绥阳县枧坝镇农业服务中心 | D41: 41101 | E41: 91.00 | F41: 36.40 | G41: 75.20 | H41: 30.08 | I41: 66.48
A42: 40 | B42: 20192040 | C42: 绥阳县枧坝镇农业服务中心 | D42: 41101 | E42: 84.50 | F42: 33.80 | G42: 74.20 | H42: 29.68 | I42: 63.48
A43: 41 | B43: 20192041 | C43: 绥阳县枧坝镇农业服务中心 | D43: 41101 | E43: 84.50 | F43: 33.80 | G43: 64.00 | H43: 25.60 | I43: 59.40
A44: 42 | B44: 20192042 | C44: 绥阳县枧坝镇人力资源和社会保障服务中心 | D44: 41201 | E44: 121.50 | F44: 48.60 | G44: 73.00 | H44: 29.20 | I44: 77.80
A45: 43 | B45: 20192044 | C45: 绥阳县枧坝镇人力资源和社会保障服务中心 | D45: 41201 | E45: 107.00 | F45: 42.80 | G45: 83.90 | H45: 33.56 | I45: 76.36
A46: 44 | B46: 20192043 | C46: 绥阳县枧坝镇人力资源和社会保障服务中心 | D46: 41201 | E46: 108.00 | F46: 43.20 | G46: 79.00 | H46: 31.60 | I46: 74.80
A47: 45 | B47: 20192045 | C47: 绥阳县枧坝镇安全生产监督管理站 | D47: 41301 | E47: 109.50 | F47: 43.80 | G47: 74.40 | H47: 29.76 | I47: 73.56
A48: 46 | B48: 20192048 | C48: 绥阳县枧坝镇安全生产监督管理站 | D48: 41301 | E48: 102.00 | F48: 40.80 | G48: 80.00 | H48: 32.00 | I48: 72.80
A49: 47 | B49: 20192046 | C49: 绥阳县枧坝镇安全生产监督管理站 | D49: 41301 | E49: 103.00 | F49: 41.20 | G49: 77.50 | H49: 31.00 | I49: 72.20
A50: 48 | B50: 20192047 | C50: 绥阳县枧坝镇安全生产监督管理站 | D50: 41301 | E50: 102.00 | F50: 40.80 | G50: 77.70 | H50: 31.08 | I50: 71.88
A51: 49 | B51: 20192049 | C51: 绥阳县黄杨镇财政所 | D51: 41401 | E51: 106.00 | F51: 42.40 | G51: 77.20 | H51: 30.88 | I51: 73.28
A52: 50 | B52: 20192050 | C52: 绥阳县黄杨镇财政所 | D52: 41401 | E52: 104.00 | F52: 41.60 | G52: 77.40 | H52: 30.96 | I52: 72.56
A53: 51 | B53: 20192054 | C53: 绥阳县黄杨镇财政所 | D53: 41401 | E53: 95.00 | F53: 38.00 | G53: 81.50 | H53: 32.60 | I53: 70.60
A54: 52 | B54: 20192051 | C54: 绥阳县黄杨镇财政所 | D54: 41401 | E54: 99.50 | F54: 39.80 | G54: 76.20 | H54: 30.48 | I54: 70.28
A55: 53 | B55: 20192053 | C55: 绥阳县黄杨镇财政所 | D55: 41401 | E55: 95.50 | F55: 38.20 | G55: 79.90 | H55: 31.96 | I55: 70.16
A56: 54 | B56: 20192052 | C56: 绥阳县黄杨镇财政所 | D56: 41401 | E56: 98.50 | F56: 39.40 | H56: 0.00 | I56: 39.40 | J56: 缺考
A57: 55 | B57: 20192056 | C57: 绥阳县大路槽乡安全生产监督管理站 | D57: 41501 | E57: 100.00 | F57: 40.00 | G57: 79.50 | H57: 31.80 | I57: 71.80
A58: 56 | B58: 20192055 | C58: 绥阳县大路槽乡安全生产监督管理站 | D58: 41501 | E58: 102.00 | F58: 40.80 | G58: 76.80 | H58: 30.72 | I58: 71.52
A59: 57 | B59: 20192057 | C59: 绥阳县大路槽乡安全生产监督管理站 | D59: 41501 | E59: 96.50 | F59: 38.60 | G59: 77.20 | H59: 30.88 | I59: 69.48
A60: 58 | B60: 20192062 | C60: 绥阳县大路槽乡村镇建设服务中心 | D60: 41601 | E60: 96.50 | F60: 38.60 | G60: 79.60 | H60: 31.84 | I60: 70.44
A61: 59 | B61: 20192060 | C61: 绥阳县大路槽乡村镇建设服务中心 | D61: 41601 | E61: 100.00 | F61: 40.00 | G61: 74.50 | H61: 29.80 | I61: 69.80
A62: 60 | B62: 20192061 | C62: 绥阳县大路槽乡村镇建设服务中心 | D62: 41601 | E62: 98.00 | F62: 39.20 | G62: 73.40 | H62: 29.36 | I62: 68.56
A63: 61 | B63: 20192063 | C63: 绥阳县大路槽乡科技宣教文化信息服务中心 | D63: 41701 | E63: 120.50 | F63: 48.20 | G63: 69.80 | H63: 27.92 | I63: 76.12
A64: 62 | B64: 20192065 | C64: 绥阳县大路槽乡科技宣教文化信息服务中心 | D64: 41701 | E64: 98.00 | F64: 39.20 | G64: 77.50 | H64: 31.00 | I64: 70.20
A65: 63 | B65: 20192064 | C65: 绥阳县大路槽乡科技宣教文化信息服务中心 | D65: 41701 | E65: 100.50 | F65: 40.20 | H65: 0.00 | I65: 40.20 | J65: 缺考
A66: 64 | B66: 20192066 | C66: 绥阳县小关乡水务管理工作站 | D66: 41801 | E66: 97.50 | F66: 39.00 | G66: 71.70 | H66: 28.68 | I66: 67.68
A67: 65 | B67: 20192068 | C67: 绥阳县小关乡水务管理工作站 | D67: 41801 | E67: 90.50 | F67: =ROUND((E67/1.5*0.6),2) -> 36.20 | G67: 75.00 | H67: =ROUND((G67*0.4),2) -> 30.00 | I67: =F67+H67 -> 66.20
A68: 66 | B68: 20192067 | C68: 绥阳县小关乡水务管理工作站 | D68: 41801 | E68: 95.00 | F68: 38.00 | G68: 68.60 | H68: 27.44 | I68: 65.44
A69: 67 | B69: 20192069 | C69: 绥阳县小关乡村镇建设服务中心 | D69: 41901 | E69: 109.00 | F69: 43.60 | G69: 74.40 | H69: 29.76 | I69: 73.36
A70: 68 | B70: 20192070 | C70: 绥阳县小关乡村镇建设服务中心 | D70: 41901 | E70: 96.00 | F70: 38.40 | G70: 73.80 | H70: 29.52 | I70: 67.92
A71: 69 | B71: 20192071 | C71: 绥阳县小关乡村镇建设服务中心 | D71: 41901 | E71: 93.50 | F71: 37.40 | G71: 74.80 | H71: 29.92 | I71: 67.32
A72: 70 | B72: 20192072 | C72: 绥阳县青杠塘镇农业服务中心 | D72: 42001 | E72: 108.00 | F72: 43.20 | G72: 76.20 | H72: 30.48 | I72: 73.68
A73: 71 | B73: 20192073 | C73: 绥阳县青杠塘镇农业服务中心 | D73: 42001 | E73: 98.00 | F73: 39.20 | G73: 68.00 | H73: 27.20 | I73: 66.40
A74: 72 | B74: 20192074 | C74: 绥阳县青杠塘镇农业服务中心 | D74: 42001 | E74: 94.00 | F74: 37.60 | G74: 68.60 | H74: 27.44 | I74: 65.04
A75: 73 | B75: 20192075 | C75: 绥阳县青杠塘镇人力资源和社会保障服务中心 | D75: 42101 | E75: 88.00 | F75: 35.20 | G75: 78.20 | H75: 31.28 | I75: 66.48
A76: 74 | B76: 20192076 | C76: 绥阳县青杠塘镇人力资源和社会保障服务中心 | D76: 42101 | E76: 76.50 | F76: 30.60 | G76: 75.00 | H76: 30.00 | I76: 60.60
A77: 75 | B77: 20192077 | C77: 绥阳县青杠塘镇人力资源和社会保障服务中心 | D77: 42101 | E77: 75.50 | F77: 30.20 | G77: 67.80 | H77: 27.12 | I77: 57.32
A78: 76 | B78: 20192078 | C78: 绥阳县青杠塘镇科技宣教文化信息服务中心 | D78: 42201 | E78: 113.00 | F78: 45.20 | G78: 78.40 | H78: 31.36 | I78: 76.56
A79: 77 | B79: 20192080 | C79: 绥阳县青杠塘镇科技宣教文化信息服务中心 | D79: 42201 | E79: 101.00 | F79: 40.40 | G79: 79.20 | H79: 31.68 | I79: 72.08
A80: 78 | B80: 20192079 | C80: 绥阳县青杠塘镇科技宣教文化信息服务中心 | D80: 42201 | E80: 101.50 | F80: 40.60 | H80: 0.00 | I80: 40.60 | J80: 缺考
A81: 79 | B81: 20192081 | C81: 绥阳县青杠塘镇安全生产监督管理站 | D81: 42301 | E81: 106.50 | F81: 42.60 | G81: 79.20 | H81: 31.68 | I81: 74.28
A82: 80 | B82: 20192082 | C82: 绥阳县青杠塘镇安全生产监督管理站 | D82: 42301 | E82: 100.00 | F82: 40.00 | G82: 74.80 | H82: 29.92 | I82: 69.92
A83: 81 | B83: 20192083 | C83: 绥阳县青杠塘镇安全生产监督管理站 | D83: 42301 | E83: 98.50 | F83: 39.40 | G83: 72.00 | H83: 28.80 | I83: 68.20
A84: 82 | B84: 20192084 | C84: 绥阳县宽阔镇水务工作管理站 | D84: 42401 | E84: 77.00 | F84: 30.80 | G84: 74.80 | H84: 29.92 | I84: 60.72
A85: 83 | B85: 20192085 | C85: 绥阳县宽阔镇水务工作管理站 | D85: 42401 | E85: 76.50 | F85: 30.60 | G85: 62.40 | H85: 24.96 | I85: 55.56
A86: 84 | B86: 20192086 | C86: 绥阳县宽阔镇水务工作管理站 | D86: 42401 | E86: 75.50 | F86: 30.20 | G86: 61.00 | H86: 24.40 | I86: 54.60
A87: 85 | B87: 20192087 | C87: 绥阳县太白镇科技宣教文化信息服务中心 | D87: 42501 | E87: 96.00 | F87: 38.40 | G87: 76.40 | H87: 30.56 | I87: 68.96
A88: 86 | B88: 20192088 | C88: 绥阳县太白镇科技宣教文化信息服务中心 | D88: 42501 | E88: 95.00 | F88: 38.00 | G88: 76.90 | H88: 30.76 | I88: 68.76
A89: 87 | B89: 20192089 | C89: 绥阳县太白镇科技宣教文化信息服务中心 | D89: 42501 | E89: 94.00 | F89: 37.60 | G89: 74.80 | H89: 29.92 | I89: 67.52
A90: 88 | B90: 20192090 | C90: 绥阳县太白镇水务管理工作站 | D90: 42601 | E90: 106.50 | F90: 42.60 | G90: 81.30 | H90: 32.52 | I90: 75.12
A91: 89 | B91: 20192091 | C91: 绥阳县太白镇水务管理工作站 | D91: 42601 | E91: 99.50 | F91: 39.80 | G91: 79.80 | H91: 31.92 | I91: 71.72
A92: 90 | B92: 20192093 | C92: 绥阳县太白镇水务管理工作站 | D92: 42601 | E92: 98.00 | F92: 39.20 | G92: 78.20 | H92: 31.28 | I92: 70.48
A93: 91 | B93: 20192092 | C93: 绥阳县太白镇水务管理工作站 | D93: 42601 | E93: 98.00 | F93: 39.20 | G93: 76.00 | H93: 30.40 | I93: 69.60
A94: 92 | B94: 20192094 | C94: 绥阳县经济发展研究中心 | D94: 42701 | E94: 126.50 | F94: 50.60 | G94: 79.00 | H94: 31.60 | I94: 82.20
A95: 93 | B95: 20192095 | C95: 绥阳县经济发展研究中心 | D95: 42701 | E95: 116.50 | F95: 46.60 | G95: 83.20 | H95: 33.28 | I95: 79.88
A96: 94 | B96: 20192097 | C96: 绥阳县经济发展研究中心 | D96: 42701 | E96: 108.00 | F96: 43.20 | G96: 82.80 | H96: 33.12 | I96: 76.32
A97: 95 | B97: 20192098 | C97: 绥阳县经济发展研究中心 | D97: 42701 | E97: 107.50 | F97: 43.00 | G97: 83.00 | H97: 33.20 | I97: 76.20
A98: 96 | B98: 20192100 | C98: 绥阳县经济发展研究中心 | D98: 42701 | E98: 106.50 | F98: 42.60 | G98: 81.70 | H98: 32.68 | I98: 75.28
A99: 97 | B99: 20192096 | C99: 绥阳县经济发展研究中心 | D99: 42701 | E99: 108.00 | F99: 43.20 | G99: 79.60 | H99: 31.84 | I99: 75.04
A100: 98 | B100: 20192099 | C100: 绥阳县经济发展研究中心 | D100: 42701 | E100: 107.00 | F100: 42.80 | G100: 78.80 | H100: 31.52 | I100: 74.32
A101: 99 | B101: 20192101 | C101: 绥阳县经济发展研究中心 | D101: 42701 | E101: 106.50 | F101: 42.60 | G101: 79.30 | H101: 31.72 | I101: 74.32
A102: 100 | B102: 20192102 | C102: 绥阳县经济发展研究中心 | D102: 42701 | E102: 106.00 | F102: 42.40 | G102: 79.60 | H102: 31.84 | I102: 74.24
A103: 101 | B103: 20192103 | C103: 绥阳县决策咨询中心 | D103: 42801 | E103: 106.50 | F103: 42.60 | G103: 78.10 | H103: 31.24 | I103: 73.84
A104: 102 | B104: 20192104 | C104: 绥阳县决策咨询中心 | D104: 42801 | E104: 96.50 | F104: 38.60 | G104: 78.90 | H104: 31.56 | I104: 70.16
A105: 103 | B105: 20192105 | C105: 绥阳县决策咨询中心 | D105: 42801 | E105: 88.50 | F105: 35.40 | H105: 0.00 | I105: 35.40 | J105: 缺考
A106: 104 | B106: 20192106 | C106: 绥阳县绩效评估中心 | D106: 42901 | E106: 101.00 | F106: 40.40 | G106: 81.70 | H106: 32.68 | I106: 73.08
A107: 105 | B107: 20192107 | C107: 绥阳县绩效评估中心 | D107: 42901 | E107: 100.00 | F107: 40.00 | G107: 82.20 | H107: 32.88 | I107: 72.88
A108: 106 | B108: 20192108 | C108: 绥阳县绩效评估中心 | D108: 42901 | E108: 99.50 | F108: 39.80 | G108: 68.40 | H108: 27.36 | I108: 67.16
A109: 107 | B109: 20192109 | C109: 绥阳县社会救助中心 | D109: 43001 | E109: 126.50 | F109: 50.60 | G109: 70.20 | H109: 28.08 | I109: 78.68
A110: 108 | B110: 20192110 | C110: 绥阳县社会救助中心 | D110: 43001 | E110: 108.00 | F110: 43.20 | G110: 70.40 | H110: 28.16 | I110: 71.36
A111: 109 | B111: 20192111 | C111: 绥阳县社会救助中心 | D111: 43001 | E111: 97.50 | F111: 39.00 | G111: 78.30 | H111: 31.32 | I111: 70.32
A112: 110 | B112: 20192112 | C112: 绥阳县康复医院 | D112: 43101 | E112: 77.50 | F112: 31.00 | G112: 74.60 | H112: 29.84 | I112: 60.84
A113: 111 | B113: 20192113 | C113: 绥阳县工业园区管理服务中心 | D113: 43201 | E113: 110.00 | F113: 44.00 | G113: 82.20 | H113: 32.88 | I113: 76.88
A114: 112 | B114: 20192114 | C114: 绥阳县工业园区管理服务中心 | D114: 43201 | E114: 109.00 | F114: 43.60 | G114: 82.50 | H114: 33.00 | I114: 76.60
A115: 113 | B115: 20192115 | C115: 绥阳县工业园区管理服务中心 | D115: 43201 | E115: 107.50 | F115: 43.00 | G115: 83.60 | H115: 33.44 | I115: 76.44
A116: 114 | B116: 20192117 | C116: 绥阳县公证处 | D116: 43301 | E116: 108.50 | F116: 43.40 | G116: 80.30 | H116: 32.12 | I116: 75.52
A117: 115 | B117: 20192118 | C117: 绥阳县公证处 | D117: 43301 | E117: 99.00 | F117: 39.60 | G117: 63.20 | H117: 25.28 | I117: 64.88
A118: 116 | B118: 20192116 | C118: 绥阳县公证处 | D118: 43301 | E118: 114.00 | F118: 45.60 | H118: 0.00 | I118: 45.60 | J118: 缺考
A119: 117 | B119: 20192120 | C119: 绥阳县综合行政执法局乡镇分局 | D119: 43401 | E119: 112.50 | F119: 45.00 | G119: 81.40 | H119: 32.56 | I119: 77.56
A120: 118 | B120: 20192119 | C120: 绥阳县综合行政执法局乡镇分局 | D120: 43401 | E120: 113.00 | F120: 45.20 | G120: 80.30 | H120: 32.12 | I120: 77.32
A121: 119 | B121: 20192121 | C121: 绥阳县综合行政执法局乡镇分局 | D121: 43401 | E121: 112.00 | F121: 44.80 | G121: 79.80 | H121: 31.92 | I121: 76.72
A122: 120 | B122: 20192122 | C122: 绥阳县综合行政执法局乡镇分局 | D122: 43401 | E122: 107.00 | F122: 42.80 | G122: 83.40 | H122: 33.36 | I122: 76.16
A123: 121 | B123: 20192123 | C123: 绥阳县综合行政执法局乡镇分局 | D123: 43401 | E123: 104.50 | F123: 41.80 | G123: 82.60 | H123: 33.04 | I123: 74.84
A124: 122 | B124: 20192126 | C124: 绥阳县综合行政执法局乡镇分局 | D124: 43401 | E124: 104.00 | F124: 41.60 | G124: 83.10 | H124: 33.24 | I124: 74.84
A125: 123 | B125: 20192129 | C125: 绥阳县综合行政执法局乡镇分局 | D125: 43401 | E125: 102.00 | F125: 40.80 | G125: 84.76 | H125: 33.90 | I125: 74.70
A126: 124 | B126: 20192127 | C126: 绥阳县综合行政执法局乡镇分局 | D126: 43401 | E126: 103.50 | F126: 41.40 | G126: 83.02 | H126: 33.21 | I126: 74.61
A127: 125 | B127: 20192128 | C127: 绥阳县综合行政执法局乡镇分局 | D127: 43401 | E127: 102.00 | F127: 40.80 | G127: 81.20 | H127: 32.48 | I127: 73.28
A128: 126 | B128: 20192130 | C128: 绥阳县综合行政执法局乡镇分局 | D128: 43401 | E128: 102.00 | F128: 40.80 | G128: 80.40 | H128: 32.16 | I128: 72.96
A129: 127 | B129: 20192139 | C129: 绥阳县综合行政执法局乡镇分局 | D129: 43401 | E129: 98.00 | F129: 39.20 | G129: 81.80 | H129: 32.72 | I129: 71.92
A130: 128 | B130: 20192136 | C130: 绥阳县综合行政执法局乡镇分局 | D130: 43401 | E130: 98.50 | F130: 39.40 | G130: 81.20 | H130: 32.48 | I130: 71.88
A131: 129 | B131: 20192133 | C131: 绥阳县综合行政执法局乡镇分局 | D131: 43401 | E131: 101.00 | F131: =ROUND((E131/1.5*0.6),2) -> 40.40 | G131: 78.34 | H131: =ROUND((G131*0.4),2) -> 31.34 | I131: =F131+H131 -> 71.74
A132: 130 | B132: 20192137 | C132: 绥阳县综合行政执法局乡镇分局 | D132: 43401 | E132: 98.50 | F132: 39.40 | G132: 79.20 | H132: 31.68 | I132: 71.08
A133: 131 | B133: 20192134 | C133: 绥阳县综合行政执法局乡镇分局 | D133: 43401 | E133: 100.50 | F133: 40.20 | G133: 77.00 | H133: 30.80 | I133: 71.00
A134: 132 | B134: 20192132 | C134: 绥阳县综合行政执法局乡镇分局 | D134: 43401 | E134: 101.50 | F134: 40.60 | G134: 75.80 | H134: 30.32 | I134: 70.92
A135: 133 | B135: 20192124 | C135: 绥阳县综合行政执法局乡镇分局 | D135: 43401 | E135: 104.50 | F135: 41.80 | G135: 72.40 | H135: 28.96 | I135: 70.76
A136: 134 | B136: 20192135 | C136: 绥阳县综合行政执法局乡镇分局 | D136: 43401 | E136: 99.00 | F136: 39.60 | G136: 77.00 | H136: 30.80 | I136: 70.40
A137: 135 | B137: 20192131 | C137: 绥阳县综合行政执法局乡镇分局 | D137: 43401 | E137: 101.50 | F137: 40.60 | G137: 73.80 | H137: 29.52 | I137: 70.12
A138: 136 | B138: 20192140 | C138: 绥阳县综合行政执法局乡镇分局 | D138: 43401 | E138: 98.00 | F138: 39.20 | G138: 76.32 | H138: 30.53 | I138: 69.73
A139: 137 | B139: 20192138 | C139: 绥阳县综合行政执法局乡镇分局 | D139: 43401 | E139: 98.50 | F139: 39.40 | G139: 74.40 | H139: 29.76 | I139: 69.16
A140: 138 | B140: 20192125 | C140: 绥阳县综合行政执法局乡镇分局 | D140: 43401 | E140: 104.00 | F140: 41.60 | H140: 0.00 | I140: 41.60 | J140: 缺考
A141: 139 | B141: 20192141 | C141: 绥阳县综合行政执法局乡镇分局 | D141: 43401 | E141: 98.00 | F141: 39.20 | H141: 0.00 | I141: 39.20 | J141: 缺考
A142: 140 | B142: 20192148 | C142: 绥阳县综合行政执法局乡镇分局 | D142: 43402 | E142: 107.00 | F142: 42.80 | G142: 80.80 | H142: 32.32 | I142: 75.12
A143: 141 | B143: 20192151 | C143: 绥阳县综合行政执法局乡镇分局 | D143: 43402 | E143: 102.50 | F143: 41.00 | G143: 83.20 | H143: 33.28 | I143: 74.28
A144: 142 | B144: 20192149 | C144: 绥阳县综合行政执法局乡镇分局 | D144: 43402 | E144: 105.00 | F144: 42.00 | G144: 80.20 | H144: 32.08 | I144: 74.08
A145: 143 | B145: 20192157 | C145: 绥阳县综合行政执法局乡镇分局 | D145: 43402 | E145: 98.50 | F145: 39.40 | G145: 83.60 | H145: 33.44 | I145: 72.84
A146: 144 | B146: 20192152 | C146: 绥阳县综合行政执法局乡镇分局 | D146: 43402 | E146: 101.00 | F146: 40.40 | G146: 80.60 | H146: 32.24 | I146: 72.64
A147: 145 | B147: 20192153 | C147: 绥阳县综合行政执法局乡镇分局 | D147: 43402 | E147: 100.00 | F147: 40.00 | G147: 81.40 | H147: 32.56 | I147: 72.56
A148: 146 | B148: 20192150 | C148: 绥阳县综合行政执法局乡镇分局 | D148: 43402 | E148: 102.50 | F148: 41.00 | G148: 78.60 | H148: 31.44 | I148: 72.44
A149: 147 | B149: 20192160 | C149: 绥阳县综合行政执法局乡镇分局 | D149: 43402 | E149: 97.00 | F149: 38.80 | G149: 81.60 | H149: 32.64 | I149: 71.44
A150: 148 | B150: 20192156 | C150: 绥阳县综合行政执法局乡镇分局 | D150: 43402 | E150: 98.50 | F150: 39.40 | G150: 80.00 | H150: 32.00 | I150: 71.40
A151: 149 | B151: 20192155 | C151: 绥阳县综合行政执法局乡镇分局 | D151: 43402 | E151: 98.50 | F151: 39.40 | G151: 79.00 | H151: 31.60 | I151: 71.00
A152: 150 | B152: 20192158 | C152: 绥阳县综合行政执法局乡镇分局 | D152: 43402 | E152: 97.50 | F152: 39.00 | G152: 77.40 | H152: 30.96 | I152: 69.96
A153: 151 | B153: 20192159 | C153: 绥阳县综合行政执法局乡镇分局 | D153: 43402 | E153: 97.50 | F153: 39.00 | G153: 77.20 | H153: 30.88 | I153: 69.88
A154: 152 | B154: 20192154 | C154: 绥阳县综合行政执法局乡镇分局 | D154: 43402 | E154: 99.50 | F154: 39.80 | G154: 74.60 | H154: 29.84 | I154: 69.64
A155: 153 | B155: 20192163 | C155: 绥阳县综合行政执法局乡镇分局 | D155: 43402 | E155: 93.50 | F155: 37.40 | G155: 80.00 | H155: 32.00 | I155: 69.40
A156: 154 | B156: 20192161 | C156: 绥阳县综合行政执法局乡镇分局 | D156: 43402 | E156: 94.50 | F156: 37.80 | G156: 77.00 | H156: 30.80 | I156: 68.60
A157: 155 | B157: 20192164 | C157: 绥阳县综合行政执法局乡镇分局 | D157: 43402 | E157: 93.50 | F157: 37.40 | G157: 77.20 | H157: 30.88 | I157: 68.28
A158: 156 | B158: 20192162 | C158: 绥阳县综合行政执法局乡镇分局 | D158: 43402 | E158: 94.50 | F158: 37.80 | H158: 0.00 | I158: 37.80 | J158: 缺考
A159: 157 | B159: 20192165 | C159: 绥阳县综合行政执法局乡镇分局 | D159: 43402 | E159: 93.00 | F159: 37.20 | H159: 0.00 | I159: 37.20 | J159: 缺考
A160: 158 | B160: 20192143 | C160: 绥阳县洋川街道自然资源所 | D160: 43501 | E160: 104.50 | F160: 41.80 | G160: 83.70 | H160: 33.48 | I160: 75.28
A161: 159 | B161: 20192142 | C161: 绥阳县洋川街道自然资源所 | D161: 43501 | E161: 108.50 | F161: 43.40 | G161: 79.20 | H161: 31.68 | I161: 75.08
A162: 160 | B162: 20192144 | C162: 绥阳县洋川街道自然资源所 | D162: 43501 | E162: 103.50 | F162: 41.40 | G162: 80.40 | H162: 32.16 | I162: 73.56
A163: 161 | B163: 20192147 | C163: 绥阳县洋川街道自然资源所 | D163: 43501 | E163: 98.50 | F163: 39.40 | G163: 79.00 | H163: 31.60 | I163: 71.00
A164: 162 | B164: 20192145 | C164: 绥阳县洋川街道自然资源所 | D164: 43501 | E164: 100.50 | F164: 40.20 | G164: 74.30 | H164: 29.72 | I164: 69.92
A165: 163 | B165: 20192146 | C165: 绥阳县洋川街道自然资源所 | D165: 43501 | E165: 99.00 | F165: 39.60 | G165: 72.00 | H165: 28.80 | I165: 68.40
A166: 164 | B166: 20192166 | C166: 绥阳县枧坝镇自然资源所 | D166: 43601 | E166: 107.50 | F166: 43.00 | G166: 77.40 | H166: 30.96 | I166: 73.96
A167: 165 | B167: 20192167 | C167: 绥阳县枧坝镇自然资源所 | D167: 43601 | E167: 98.50 | F167: 39.40 | G167: 79.60 | H167: 31.84 | I167: 71.24
A168: 166 | B168: 20192168 | C168: 绥阳县枧坝镇自然资源所 | D168: 43601 | E168: 93.50 | F168: 37.40 | H168: 0.00 | I168: 37.40 | J168: 缺考
A169: 167 | B169: 20192170 | C169: 绥阳县茅垭镇自然资源所 | D169: 43701 | E169: 95.00 | F169: 38.00 | G169: 84.80 | H169: 33.92 | I169: 71.92
A170: 168 | B170: 20192169 | C170: 绥阳县茅垭镇自然资源所 | D170: 43701 | E170: 100.00 | F170: 40.00 | G170: 77.40 | H170: 30.96 | I170: 70.96
A171: 169 | B171: 20192171 | C171: 绥阳县茅垭镇自然资源所 | D171: 43701 | E171: 91.00 | F171: 36.40 | H171: 0.00 | I171: 36.40 | J171: 缺考
A172: 170 | B172: 20192172 | C172: 绥阳县坪乐镇自然资源所 | D172: 43801 | E172: 102.50 | F172: 41.00 | G172: 84.80 | H172: 33.92 | I172: 74.92
A173: 171 | B173: 20192173 | C173: 绥阳县坪乐镇自然资源所 | D173: 43801 | E173: 100.50 | F173: 40.20 | G173: 76.60 | H173: 30.64 | I173: 70.84
A174: 172 | B174: 20192174 | C174: 绥阳县坪乐镇自然资源所 | D174: 43801 | E174: 94.50 | F174: 37.80 | G174: 82.20 | H174: 32.88 | I174: 70.68
A175: 173 | B175: 20192178 | C175: 绥阳县应急救援服务中心 | D175: 43901 | E175: 114.00 | F175: 45.60 | G175: 83.72 | H175: 33.49 | I175: 79.09
A176: 174 | B176: 20192179 | C176: 绥阳县应急救援服务中心 | D176: 43901 | E176: 102.00 | F176: 40.80 | G176: 80.80 | H176: 32.32 | I176: 73.12
A177: 175 | B177: 20192180 | C177: 绥阳县应急救援服务中心 | D177: 43901 | E177: 102.00 | F177: 40.80 | H177: 0.00 | I177: 40.80 | J177: 缺考
A178: 176 | B178: 20192181 | C178: 绥阳县应急救援服务中心 | D178: 43902 | E178: 106.50 | F178: 42.60 | G178: 81.70 | H178: 32.68 | I178: 75.28
A179: 177 | B179: 20192182 | C179: 绥阳县应急救援服务中心 | D179: 43902 | E179: 104.00 | F179: 41.60 | G179: 80.00 | H179: 32.00 | I179: 73.60
A180: 178 | B180: 20192183 | C180: 绥阳县应急救援服务中心 | D180: 43902 | E180: 98.00 | F180: 39.20 | G180: 75.60 | H180: 30.24 | I180: 69.44
A181: 179 | B181: 20192186 | C181: 绥阳县应急救援服务中心 | D181: 43903 | E181: 103.00 | F181: 41.20 | G181: 83.50 | H181: 33.40 | I181: 74.60
A182: 180 | B182: 20192185 | C182: 绥阳县应急救援服务中心 | D182: 43903 | E182: 105.50 | F182: 42.20 | G182: 79.00 | H182: 31.60 | I182: 73.80
A183: 181 | B183: 20192184 | C183: 绥阳县应急救援服务中心 | D183: 43903 | E183: 109.50 | F183: 43.80 | H183: 0.00 | I183: 43.80 | J183: 缺考
A184: 182 | B184: 20192189 | C184: 绥阳县文化旅游发展服务中心 | D184: 44001 | E184: 104.50 | F184: 41.80 | G184: 86.30 | H184: 34.52 | I184: 76.32
A185: 183 | B185: 20192190 | C185: 绥阳县文化旅游发展服务中心 | D185: 44001 | E185: 104.00 | F185: 41.60 | G185: 82.60 | H185: 33.04 | I185: 74.64
A186: 184 | B186: 20192188 | C186: 绥阳县文化旅游发展服务中心 | D186: 44001 | E186: 106.00 | F186: 42.40 | G186: 80.40 | H186: 32.16 | I186: 74.56
A187: 185 | B187: 20192187 | C187: 绥阳县文化旅游发展服务中心 | D187: 44001 | E187: 107.50 | F187: 43.00 | G187: 78.80 | H187: 31.52 | I187: 74.52
A188: 186 | B188: 20192192 | C188: 绥阳县文化旅游发展服务中心 | D188: 44001 | E188: 103.00 | F188: 41.20 | G188: 81.90 | H188: 32.76 | I188: 73.96
A189: 187 | B189: 20192191 | C189: 绥阳县文化旅游发展服务中心 | D189: 44001 | E189: 103.00 | F189: 41.20 | G189: 77.60 | H189: 31.04 | I189: 72.24
A190: 188 | B190: 20192193 | C190: 绥阳县农村发展服务中心 | D190: 44101 | E190: 115.00 | F190: 46.00 | G190: 79.80 | H190: 31.92 | I190: 77.92
A191: 189 | B191: 20192194 | C191: 绥阳县农村发展服务中心 | D191: 44101 | E191: 104.00 | F191: 41.60 | G191: 77.20 | H191: 30.88 | I191: 72.48
A192: 190 | B192: 20192195 | C192: 绥阳县农村发展服务中心 | D192: 44101 | E192: 103.00 | F192: 41.20 | H192: 0.00 | I192: 41.20 | J192: 缺考
A193: 191 | B193: 20192196 | C193: 绥阳县农村发展服务中心 | D193: 44103 | E193: 111.50 | F193: 44.60 | G193: 79.60 | H193: 31.84 | I193: 76.44
A194: 192 | B194: 20192197 | C194: 绥阳县农村发展服务中心 | D194: 44103 | E194: 111.00 | F194: 44.40 | G194: 75.60 | H194: 30.24 | I194: 74.64
A195: 193 | B195: 20192198 | C195: 绥阳县农村发展服务中心 | D195: 44103 | E195: 104.00 | F195: =ROUND((E195/1.5*0.6),2) -> 41.60 | G195: 77.30 | H195: =ROUND((G195*0.4),2) -> 30.92 | I195: =F195+H195 -> 72.52
A196: 194 | B196: 20192199 | C196: 绥阳县洋川镇社区卫生服务中心 | D196: 44201 | E196: 85.50 | F196: 34.20 | G196: 77.80 | H196: 31.12 | I196: 65.32
A197: 195 | B197: 20192200 | C197: 绥阳县洋川镇社区卫生服务中心 | D197: 44201 | E197: 83.50 | F197: 33.40 | G197: 77.40 | H197: 30.96 | I197: 64.36
A198: 196 | B198: 20192201 | C198: 绥阳县洋川镇社区卫生服务中心 | D198: 44201 | E198: 81.50 | F198: 32.60 | G198: 72.00 | H198: 28.80 | I198: 61.40
A199: 197 | B199: 20192202 | C199: 绥阳县洋川镇社区卫生服务中心 | D199: 44202 | E199: 93.50 | F199: 37.40 | G199: 78.50 | H199: 31.40 | I199: 68.80
A200: 198 | B200: 20192204 | C200: 绥阳县洋川镇社区卫生服务中心 | D200: 44202 | E200: 90.50 | F200: 36.20 | G200: 78.00 | H200: 31.20 | I200: 67.40
... 69 more rows
